bitfinex/quotes_BTCUSD_20251113
["timestamp","ask_amount","ask_price","bid_price","bid_amount"]
[1763076873316,4.61e-05,100360.0,100350.0,0.59754244]
[1763076873641,4.61e-05,100360.0,100350.0,0.61754244]
[1763076878725,4.61e-05,100360.0,100350.0,1.15775829]
[1763076878927,4.61e-05,100360.0,100350.0,0.61754244]
[1763076879349,4.61e-05,100360.0,100350.0,1.15775829]
[1763076880975,4.61e-05,100360.0,100350.0,1.04692482]
[1763076881346,6.1e-06,100360.0,100350.0,1.04692482]
[1763076882626,0.68198738,100390.0,100380.0,0.21924287]
[1763076882894,0.68198738,100390.0,100380.0,0.25848098]
[1763076883080,0.68198738,100390.0,100380.0,0.05923811]
[1763076883379,0.68198738,100390.0,100380.0,0.25848098]
[1763076884864,0.67202415,100390.0,100380.0,0.25848098]
[1763076885063,0.47280112,100390.0,100380.0,0.25848098]
[1763076885286,0.24264177,100390.0,100380.0,0.25848098]
[1763076885844,0.04341874,100390.0,100380.0,0.25848098]
[1763076886048,0.63860139,100400.0,100390.0,0.19922303]
[1763076886273,0.68202013,100400.0,100390.0,0.26990303]
[1763076886881,0.25263775,100400.0,100390.0,0.26990303]
[1763076887809,0.68202013,100400.0,100390.0,0.07068]
[1763076888008,0.68202013,100400.0,100390.0,0.0467]
[1763076888214,0.72114013,100400.0,100390.0,0.02]
[1763076889942,0.19922303,100390.0,100380.0,0.02013811]
[1763076890164,0.99531541,100390.0,100380.0,0.00013811]
[1763076890368,1.03873415,100390.0,100380.0,0.00013811]
[1763076896969,1.03873415,100390.0,100380.0,0.02013811]
[1763076900271,0.60935177,100390.0,100380.0,0.02013811]
[1763076900406,1.03873415,100390.0,100380.0,0.02013811]
[1763076901593,1.03873415,100390.0,100380.0,0.00013811]
[1763076902104,1.03873415,100390.0,100380.0,1e-08]
[1763076906340,1.03973415,100390.0,100380.0,1e-08]
[1763076906584,1.04073415,100390.0,100380.0,0.02000001]
[1763076907297,0.002,100390.0,100380.0,0.68901526]
[1763076907501,0.002,100390.0,100380.0,1.01201526]
[1763076907711,0.00022854,100410.0,100400.0,0.22920318]
[1763076907927,0.00022854,100410.0,100400.0,0.28165318]
[1763076909241,0.00022854,100410.0,100400.0,0.28465318]
[1763076909892,0.00022854,100410.0,100400.0,0.71403556]
[1763076910324,0.00022854,100410.0,100400.0,0.28465318]
[1763076917092,0.00022854,100410.0,100400.0,0.71403556]
[1763076917295,0.00022854,100410.0,100400.0,0.28465318]
[1763076918206,0.00022854,100410.0,100400.0,1.03703556]
[1763076918707,0.00022854,100410.0,100400.0,1.47641793]
[1763076919220,3.499e-05,100410.0,100400.0,1.47641793]
[1763076919352,3.499e-05,100410.0,100400.0,1.17024581]
[1763076919938,3.499e-05,100410.0,100400.0,1.04703555]
[1763076920172,3.499e-05,100410.0,100400.0,1.04503555]
[1763076920407,3.499e-05,100410.0,100400.0,1.04403555]
[1763076920625,3.499e-05,100410.0,100400.0,1.1772458]
[1763076921051,3.499e-05,100410.0,100400.0,3.95392547]
[1763076921229,0.0002,100450.0,100440.0,0.52212385]
[1763076921426,0.0002,100450.0,100440.0,0.57856385]
[1763076921676,0.0002,100450.0,100440.0,1.03161623]
[1763076922218,0.0002,100450.0,100440.0,0.60223385]
[1763076922332,0.0002,100450.0,100440.0,0.60237222]
[1763076922796,0.54308271,100490.0,100440.0,0.60237222]
[1763076922797,10.01468069,100500.0,100490.0,0.01979]
[1763076922994,10.01468069,100500.0,100490.0,0.68819715]
[1763076923214,10.01468069,100500.0,100490.0,0.40646]
[1763076923478,10.44406307,100500.0,100490.0,0.01979]
[1763076923694,10.66678804,100500.0,100470.0,0.01202]
[1763076923891,0.28721053,100490.0,100480.0,0.01]
[1763076924251,0.26347351,100490.0,100480.0,0.01]
[1763076924649,0.26347351,100490.0,100480.0,0.20904458]
[1763076924851,0.04800874,100490.0,100480.0,0.21004458]
[1763076925056,0.67182589,100490.0,100480.0,0.25015458]
[1763076925342,0.47280112,100490.0,100480.0,0.24915458]
[1763076925882,0.04341874,100490.0,100480.0,0.24915458]
[1763076926287,0.04341874,100490.0,100480.0,0.26915458]
[1763076926811,10.01514257,100500.0,100490.0,0.19902477]
[1763076927014,10.01514257,100500.0,100490.0,0.29115477]
[1763076927995,10.01514257,100500.0,100490.0,1.04353715]
[1763076928194,9.98425257,100500.0,100490.0,1.05453714]
[1763076928381,9.98425257,100500.0,100490.0,0.64346257]
[1763076928784,9.26120987,100500.0,100490.0,1.22947394]
[1763076929100,9.26120987,100500.0,100490.0,1.23847394]
[1763076929101,8.99074174,100500.0,100490.0,1.23847394]
[1763076929297,8.74528125,100500.0,100490.0,1.34347394]
[1763076929507,8.7154075,100500.0,100490.0,1.34347394]
[1763076929727,8.44189759,100500.0,100490.0,1.24186987]
[1763076929939,8.41202384,100500.0,100490.0,1.28186987]
[1763076930148,7.63794842,100500.0,100490.0,1.31336285]
[1763076930362,7.35563479,100500.0,100490.0,1.40574842]
[1763076930558,7.12215871,100500.0,100490.0,1.4372414]
[1763076930765,6.80110793,100500.0,100490.0,3.87662377]
[1763076931024,6.74236043,100500.0,100490.0,3.44724139]
[1763076931224,6.60512722,100500.0,100490.0,3.40384547]
[1763076931488,6.57525347,100500.0,100490.0,3.3623525]
[1763076931693,6.09494587,100500.0,100490.0,3.24847394]
[1763076931894,5.74204387,100500.0,100490.0,3.4372414]
[1763076932026,5.48253873,100500.0,100490.0,3.4372414]
[1763076932236,5.28606813,100500.0,100490.0,3.8372414]
[1763076932433,4.90858948,100500.0,100490.0,3.84724139]
[1763076932642,4.62941535,100500.0,100490.0,4.27662377]
[1763076933010,4.54494058,100500.0,100490.0,4.27662377]
[1763076933223,4.24373987,100500.0,100490.0,3.8372414]
[1763076933416,3.79230632,100500.0,100490.0,4.30220346]
[1763076933652,3.63271831,100500.0,100490.0,4.27662377]
[1763076933867,3.49033181,100500.0,100490.0,4.27662377]
[1763076934121,3.23871012,100500.0,100490.0,4.27662377]
[1763076934368,2.38789439,100500.0,100490.0,4.52672346]
[1763076934579,2.15656973,100500.0,100490.0,4.52672346]
[1763076934800,1.96812347,100500.0,100490.0,4.42172346]
[1763076935013,1.78628234,100500.0,100490.0,4.42172346]
[1763076935234,1.66853575,100500.0,100490.0,4.42172346]
[1763076935457,1.44274573,100500.0,100490.0,4.39614377]
[1763076935670,1.19736018,100500.0,100490.0,4.40614377]
[1763076935888,1.16749666,100500.0,100490.0,4.39420145]
[1763076936094,1.13763314,100500.0,100490.0,4.39420145]
[1763076936305,1.10676962,100500.0,100490.0,4.39420145]
[1763076936518,1.0769061,100500.0,100490.0,4.39420145]
[1763076936725,1.04804258,100500.0,100490.0,3.96481907]
[1763076936966,1.01817906,100500.0,100490.0,3.78188035]
[1763076937177,1.01317906,100500.0,100490.0,3.75535822]
[1763076937390,1.01317906,100500.0,100490.0,3.78188035]
[1763076937594,1.01317906,100500.0,100490.0,3.84529907]
[1763076937945,1.01217906,100500.0,100490.0,3.84529907]
[1763076938157,1.01317906,100500.0,100490.0,3.84529907]
[1763076938943,0.35497919,100500.0,100490.0,3.84529907]
[1763076939143,0.03362068,100500.0,100490.0,4.30420624]
[1763076939351,1e-08,100510.0,100500.0,2.88704663]
[1763076939556,1e-08,100510.0,100500.0,3.99303857]
[1763076939969,1e-08,100510.0,100500.0,4.42290071]
[1763076940171,1e-08,100510.0,100500.0,4.49725145]
[1763076940752,0.00200001,100510.0,100500.0,4.06786907]
[1763076940991,1e-08,100510.0,100500.0,4.49725145]
[1763076941375,1e-08,100520.0,100510.0,0.60082389]
[1763076941584,1e-08,100520.0,100510.0,3.82423755]
[1763076941776,1e-08,100520.0,100510.0,3.84188513]
[1763076941973,1e-08,100520.0,100510.0,4.24188513]
[1763076943005,1e-08,100520.0,100510.0,3.92085146]
[1763076943601,1e-08,100520.0,100510.0,3.89171779]
[1763076943805,1e-08,100520.0,100510.0,3.91870908]
[1763076944200,1e-08,100520.0,100510.0,3.7414118]
[1763076944447,1e-08,100520.0,100510.0,1.29872408]
[1763076945065,1e-08,100520.0,100510.0,1.28872409]
[1763076945424,0.00050707,100520.0,100510.0,0.750993]
[1763076945768,0.00050707,100520.0,100510.0,1.29872408]
[1763076948085,0.00050707,100520.0,100510.0,0.750993]
[1763076948264,0.00050707,100520.0,100510.0,1.29872408]
[1763076949379,0.00050707,100520.0,100510.0,1.32571537]
[1763076949574,0.00050707,100520.0,100510.0,0.76099299]
[1763076949781,0.00050707,100520.0,100510.0,1.29872408]
[1763076952063,0.00050707,100520.0,100510.0,1.3244205]
[1763076953617,0.00050707,100520.0,100510.0,1.35257846]
[1763076953804,0.00050707,100520.0,100510.0,1.3244205]
[1763076954481,7.766e-05,100520.0,100510.0,1.29872408]
[1763076955037,7.766e-05,100520.0,100510.0,1.28872409]
[1763076955239,7.766e-05,100520.0,100510.0,1.29872408]
[1763076956919,7.766e-05,100520.0,100510.0,1.30103409]
[1763076957122,7.766e-05,100520.0,100510.0,1.17782383]
[1763076957318,7.766e-05,100520.0,100510.0,0.63009275]
[1763076958037,7.766e-05,100520.0,100510.0,0.61244517]
[1763076958392,7.766e-05,100520.0,100510.0,0.04773]
[1763076959127,7.766e-05,100520.0,100510.0,0.07046]
[1763076959330,7.766e-05,100520.0,100510.0,1.15017626]
[1763076960406,1.192e-05,100520.0,100510.0,1.15017626]
[1763076960924,0.00401192,100520.0,100510.0,1.15017626]
[1763076961394,0.00401192,100520.0,100510.0,0.61244517]
[1763076961763,0.00401192,100520.0,100510.0,1.15017626]
[1763076962081,0.00501192,100520.0,100510.0,1.15017626]
[1763076964281,0.00076949,100520.0,100510.0,0.61244517]
[1763076964482,0.00076949,100520.0,100510.0,0.09046]
[1763076964886,0.00076949,100520.0,100510.0,0.41346]
[1763076965107,0.00076949,100520.0,100510.0,0.61244517]
[1763076967250,0.00076949,100520.0,100510.0,0.41346]
[1763076967441,0.00076949,100520.0,100510.0,0.61244517]
[1763076967647,0.00076949,100520.0,100510.0,0.41346]
[1763076967822,0.00076949,100520.0,100510.0,0.61244517]
[1763076968026,0.00076949,100520.0,100510.0,0.41346]
[1763076968234,0.00076949,100520.0,100510.0,0.59244517]
[1763076968432,0.00076949,100520.0,100510.0,0.39346]
[1763076969017,0.00076949,100520.0,100510.0,0.04773]
[1763076969226,0.00076949,100520.0,100510.0,0.10915]
[1763076970149,0.00076949,100520.0,100510.0,0.30813517]
[1763076970752,0.00076949,100520.0,100510.0,0.10915]
[1763076970959,0.1989465,100530.0,100520.0,0.02]
[1763076971345,0.2415865,100530.0,100520.0,0.02]
[1763076971762,0.1771155,100560.0,100540.0,0.02]
[1763076971966,0.91373292,100560.0,100550.0,0.01]
[1763076972198,0.41864183,100560.0,100550.0,0.01]
[1763076972400,0.99979166,100560.0,100550.0,0.01]
[1763076973015,0.93654156,100560.0,100550.0,0.04214837]
[1763076974119,0.99979156,100560.0,100550.0,0.04414837]
[1763076974460,0.19992424,100560.0,100550.0,0.04614837]
[1763076974665,0.1138655,100560.0,100550.0,0.14910837]
[1763076974917,0.31275173,100560.0,100550.0,0.08768837]
[1763076975394,0.35617047,100560.0,100550.0,0.08768837]
[1763076975598,0.39881047,100560.0,100550.0,0.08768837]
[1763076975832,0.39881047,100560.0,100550.0,0.04614837]
[1763076976162,0.99979156,100560.0,100550.0,0.01413837]
[1763076977992,0.99979156,100560.0,100550.0,0.00413837]
[1763076979028,0.99979156,100560.0,100550.0,0.02413837]
[1763076979229,0.99979156,100560.0,100550.0,0.02213837]
[1763076979385,0.99979156,100560.0,100550.0,0.02313837]
[1763076980199,0.99979156,100560.0,100550.0,0.00113837]
[1763076980568,1.86052265,100560.0,100550.0,0.00213837]
[1763076981700,1.86052265,100560.0,100550.0,0.00113837]
[1763076981943,1.32380536,100560.0,100550.0,0.00113837]
[1763076982736,1.32380536,100560.0,100550.0,1e-08]
[1763076982737,1.86153645,100560.0,100550.0,1e-08]
[1763076982915,1.86153645,100560.0,100530.0,0.02]
[1763076982916,0.1989258,100540.0,100530.0,0.02]
[1763076983106,0.87287689,100540.0,100530.0,0.02013845]
[1763076983304,0.3351458,100540.0,100530.0,0.02013845]
[1763076983502,0.22925388,100550.0,100530.0,0.13500845]
[1763076983704,0.84254689,100540.0,100530.0,0.02013845]
[1763076983942,0.88596563,100540.0,100530.0,0.02013845]
[1763076984156,0.88596563,100540.0,100530.0,0.02313845]
[1763076984352,0.88596563,100540.0,100530.0,0.02113845]
[1763076984566,0.88596563,100540.0,100530.0,0.00113845]
[1763076984767,0.88596563,100540.0,100530.0,0.00313845]
[1763076984970,0.88596563,100540.0,100530.0,0.00113845]
[1763076985213,0.88596563,100540.0,100530.0,0.00013845]
[1763076985386,0.88596563,100540.0,100530.0,0.00213845]
[1763076985597,0.88596563,100540.0,100530.0,0.00513845]
[1763076985795,0.84254689,100540.0,100530.0,0.02513845]
[1763076986015,0.77929689,100540.0,100530.0,0.05404845]
[1763076986216,0.84254689,100540.0,100530.0,0.02213845]
[1763076986376,0.88596563,100540.0,100530.0,0.02313845]
[1763076986775,0.88596563,100540.0,100530.0,0.02213845]
[1763076987023,0.88596563,100540.0,100530.0,0.02013845]
[1763076987360,0.88596563,100540.0,100530.0,0.02313845]
[1763076987675,0.88596563,100540.0,100530.0,0.02213845]
[1763076988132,0.88596563,100540.0,100530.0,0.00413845]
[1763076988687,0.88647262,100540.0,100530.0,0.00413845]
[1763076989043,0.88647262,100540.0,100530.0,0.00213845]
[1763076989453,0.88647262,100540.0,100530.0,0.00313845]
[1763076989655,1.20947262,100540.0,100530.0,0.00313845]
[1763076989868,1.20947262,100540.0,100530.0,1e-08]
[1763076990783,0.67174153,100540.0,100530.0,1e-08]
[1763076991632,0.24240391,100510.0,100500.0,0.02]
[1763076991866,0.30777391,100510.0,100500.0,0.02013848]
[1763076992078,0.903365,100510.0,100500.0,0.02013848]
[1763076992798,0.903365,100510.0,100500.0,0.02213848]
[1763076993487,0.903365,100510.0,100500.0,0.02413848]
[1763076993727,0.845505,100510.0,100500.0,0.02413848]
[1763076994179,0.903365,100510.0,100500.0,0.02413848]
[1763077001171,0.36563391,100510.0,100500.0,0.02413848]
[1763077001377,0.903365,100510.0,100500.0,0.02413848]
[1763077001752,0.903365,100510.0,100500.0,0.02213848]
[1763077001997,0.903365,100510.0,100500.0,0.00213848]
[1763077002985,0.79416796,100510.0,100500.0,0.00213848]
[1763077003202,0.79416796,100510.0,100500.0,0.00413848]
[1763077005635,0.36563391,100510.0,100500.0,0.00413848]
[1763077005851,0.36563391,100510.0,100500.0,0.02413848]
[1763077005852,0.79940796,100510.0,100500.0,0.02413848]
[1763077007402,0.37087391,100510.0,100500.0,0.02413848]
[1763077007746,0.79940796,100510.0,100500.0,0.02413848]
[1763077010873,0.67093796,100510.0,100500.0,0.06532848]
[1763077010990,0.19898517,100510.0,100500.0,0.12662848]
[1763077011195,0.62751922,100510.0,100500.0,0.12662848]
[1763077011404,0.69812922,100510.0,100500.0,0.02413848]
[1763077011646,0.79940796,100510.0,100500.0,0.02413848]
[1763077019860,0.37087391,100510.0,100500.0,0.02413848]
[1763077020059,0.79940796,100510.0,100500.0,0.02413848]
[1763077022891,1.12520051,100510.0,100500.0,0.00413848]
[1763077025004,0.79944293,100510.0,100500.0,0.00413848]
[1763077026721,0.80963408,100510.0,100500.0,0.00413848]
[1763077027109,0.80963408,100510.0,100500.0,0.02413848]
[1763077027110,0.79944293,100510.0,100500.0,0.02413848]
[1763077028121,0.75602419,100510.0,100500.0,0.02413848]
[1763077031191,0.19898517,100510.0,100500.0,0.14204848]
[1763077031646,0.19921154,100520.0,100510.0,0.01]
[1763077032093,0.19898517,100510.0,100500.0,0.00413848]
[1763077032319,0.70860293,100510.0,100500.0,0.00413848]
[1763077032535,0.75139617,100510.0,100500.0,0.00013848]
[1763077033194,0.75139617,100510.0,100500.0,0.02013848]
[1763077033641,0.32282715,100510.0,100500.0,0.02013848]
[1763077033871,0.75139617,100510.0,100500.0,0.02013848]
[1763077034530,0.75139617,100510.0,100500.0,0.02313848]
[1763077036893,0.32282715,100510.0,100500.0,0.02313848]
[1763077037162,0.75139617,100510.0,100500.0,0.02313848]
[1763077037381,0.19921154,100520.0,100500.0,0.11938848]
[1763077037595,0.6711993,100520.0,100510.0,0.0806]
[1763077038000,0.62778056,100520.0,100510.0,0.13791]
[1763077038551,0.66541056,100520.0,100510.0,0.04166]
[1763077039162,0.62778056,100520.0,100510.0,0.0806]
[1763077039409,0.66541056,100520.0,100510.0,0.0816]
[1763077040178,0.62778056,100520.0,100510.0,0.0826]
[1763077041447,0.62778056,100520.0,100510.0,0.13991]
[1763077041909,0.19921154,100520.0,100510.0,0.13991]
[1763077042120,0.62778056,100520.0,100510.0,0.13991]
[1763077043103,0.62778056,100520.0,100510.0,0.0826]
[1763077043705,0.62778056,100520.0,100510.0,0.13991]
[1763077044476,0.19921154,100520.0,100510.0,0.13991]
[1763077044675,0.62778056,100520.0,100510.0,0.13991]
[1763077045164,0.19921154,100520.0,100510.0,0.13991]
[1763077045319,0.62778056,100520.0,100510.0,0.13991]
[1763077046899,0.95298466,100520.0,100510.0,0.13991]
[1763077048069,0.95298466,100520.0,100510.0,0.0826]
[1763077048335,0.19921154,100520.0,100510.0,0.0826]
[1763077048564,0.95298466,100520.0,100510.0,0.13991]
[1763077049911,1.07509466,100520.0,100510.0,0.04366]
[1763077050117,1.1185134,100520.0,100510.0,0.022]
[1763077052777,0.36474028,100520.0,100510.0,0.022]
[1763077052939,1.1185134,100520.0,100510.0,0.022]
[1763077054388,1.0618034,100520.0,100510.0,0.04366]
[1763077054615,0.19921154,100520.0,100510.0,0.1366]
[1763077054811,0.95298466,100520.0,100510.0,0.1366]
[1763077055031,1.07426466,100520.0,100510.0,0.022]
[1763077055614,1.07426466,100520.0,100510.0,0.02]
[1763077055818,1.07426466,100520.0,100510.0,0.022]
[1763077055975,1.01712466,100520.0,100510.0,0.04566]
[1763077056408,1.01712466,100520.0,100510.0,0.08282]
[1763077056590,1.01712466,100520.0,100510.0,0.04566]
[1763077057641,0.98049466,100520.0,100510.0,0.08282]
[1763077057840,0.22672154,100520.0,100510.0,0.08282]
[1763077058047,0.98049466,100520.0,100510.0,0.08282]
[1763077058253,1.01712466,100520.0,100510.0,0.04566]
[1763077058456,1.07426466,100520.0,100510.0,0.024]
[1763077058624,1.01712466,100520.0,100510.0,0.06116]
[1763077059153,0.26335154,100520.0,100510.0,0.06116]
[1763077059397,0.98049466,100520.0,100510.0,0.06116]
[1763077059589,1.01712466,100520.0,100510.0,0.024]
[1763077059718,1.07426466,100520.0,100510.0,0.024]
[1763077060942,1.1176834,100520.0,100510.0,0.024]
[1763077062993,1.0605434,100520.0,100510.0,0.04566]
[1763077063410,0.24263028,100520.0,100510.0,0.1386]
[1763077063591,0.9964034,100520.0,100510.0,0.1386]
[1763077064219,0.19921154,100520.0,100510.0,0.1386]
[1763077064422,0.95298466,100520.0,100510.0,0.1386]
[1763077064999,0.57611242,100520.0,100510.0,0.1386]
[1763077065996,0.00022816,100520.0,100510.0,0.4416]
[1763077066168,0.00022816,100520.0,100510.0,1.05748605]
[1763077067159,0.00022816,100520.0,100510.0,0.4796]
[1763077067359,0.00022816,100520.0,100510.0,0.4596]
[1763077067360,0.19919354,100520.0,100510.0,0.4596]
[1763077067571,0.00322816,100520.0,100510.0,0.4596]
[1763077067774,0.00322816,100520.0,100510.0,0.4796]
[1763077068290,0.00322816,100520.0,100510.0,0.4776]
[1763077068722,0.00022816,100520.0,100510.0,0.67658517]
[1763077068938,0.00422816,100520.0,100510.0,0.67658517]
[1763077069689,0.00422816,100520.0,100510.0,1.21471476]
[1763077071544,0.00422816,100520.0,100510.0,0.4776]
[1763077071749,0.00422816,100520.0,100510.0,0.67658517]
[1763077072303,0.00422816,100520.0,100510.0,0.4776]
[1763077072930,0.00422816,100520.0,100510.0,0.67658517]
[1763077074509,0.00422816,100520.0,100510.0,1.21471476]
[1763077074711,0.00022816,100520.0,100510.0,1.21471476]
[1763077075109,0.00322816,100520.0,100510.0,1.21471476]
[1763077075325,0.00322816,100520.0,100510.0,0.67658517]
[1763077075529,0.00322816,100520.0,100510.0,1.21471476]
[1763077075926,0.00322816,100520.0,100510.0,0.67658517]
[1763077076168,0.00322816,100520.0,100510.0,1.21471476]
[1763077079170,0.00322816,100520.0,100510.0,1.22471475]
[1763077079571,0.00083764,100520.0,100510.0,1.25458408]
[1763077079773,0.00083764,100520.0,100510.0,1.24458409]
[1763077080169,0.00083764,100520.0,100510.0,1.25458408]
[1763077080415,0.00083764,100520.0,100510.0,1.24458409]
[1763077080619,0.00083764,100520.0,100510.0,1.25458408]
[1763077080828,0.19890614,100550.0,100520.0,0.19896063]
[1763077081218,0.86082563,100560.0,100540.0,0.05295]
[1763077081442,0.36611478,100560.0,100550.0,0.12095]
[1763077081700,0.90424437,100560.0,100550.0,0.12095]
[1763077081894,0.90503004,100560.0,100550.0,0.06955]
[1763077082598,0.90507626,100560.0,100550.0,0.06955]
[1763077082766,0.90507626,100560.0,100550.0,0.12095]
[1763077082767,0.36794667,100560.0,100550.0,0.12095]
[1763077083699,0.32452793,100560.0,100550.0,0.12295]
[1763077084048,0.32352793,100560.0,100550.0,0.12295]
[1763077084383,0.32352793,100560.0,100550.0,0.12495]
[1763077084775,0.86165752,100560.0,100550.0,0.12495]
[1763077085688,0.32352793,100560.0,100550.0,0.12495]
[1763077085918,0.86165752,100560.0,100550.0,0.12495]
[1763077086056,0.86165752,100560.0,100550.0,0.07355]
[1763077086251,0.47787667,100560.0,100550.0,0.024]
[1763077086471,1.01600626,100560.0,100550.0,0.024]
[1763077086671,0.47787667,100560.0,100550.0,0.024]
[1763077086997,1.01600626,100560.0,100550.0,0.024]
[1763077087369,1.01600626,100560.0,100550.0,0.022]
[1763077087668,0.96383626,100560.0,100550.0,0.04137]
[1763077088082,0.96383626,100560.0,100550.0,0.04237]
[1763077088902,0.80233129,100560.0,100550.0,0.04237]
[1763077089106,0.74357129,100560.0,100550.0,0.12672]
[1763077090767,0.74357129,100560.0,100550.0,0.022]
[1763077090768,1.20636591,100560.0,100550.0,0.022]
[1763077090951,1.20636591,100560.0,100550.0,0.002]
[1763077091494,1.52936591,100560.0,100550.0,0.002]
[1763077091712,1.55924104,100560.0,100550.0,0.002]
[1763077092452,1.55924104,100560.0,100550.0,0.001]
[1763077092655,1.55924104,100560.0,100550.0,0.002]
[1763077092922,1.34428198,100560.0,100550.0,0.002]
[1763077093863,1.31440685,100560.0,100550.0,0.001]
[1763077094067,1.31440685,100560.0,100550.0,0.002]
[1763077094702,1.85269703,100560.0,100550.0,0.002]
[1763077097816,1.85269703,100560.0,100550.0,1e-08]
[1763077098750,1.31440685,100560.0,100550.0,1e-08]
[1763077105824,1.27098811,100560.0,100550.0,0.02000001]
[1763077106642,1.31440685,100560.0,100550.0,0.02000001]
[1763077106811,1.37662939,100560.0,100550.0,1e-08]
[1763077107070,1.31440685,100560.0,100550.0,1e-08]
[1763077107834,1.32325685,100560.0,100550.0,1e-08]
[1763077109977,1.32325685,100560.0,100550.0,0.02000001]
[1763077112990,1.32325685,100560.0,100550.0,1e-08]
[1763077114377,0.78496667,100560.0,100550.0,1e-08]
[1763077114617,1.32325685,100560.0,100550.0,1e-08]
[1763077115030,1.53847123,100560.0,100550.0,1e-08]
[1763077122630,1.56835014,100560.0,100550.0,1e-08]
[1763077122836,3.95510241,100560.0,100550.0,1e-08]
[1763077123678,3.57835013,100560.0,100550.0,1e-08]
[1763077124876,0.19894558,100530.0,100520.0,0.02]
[1763077125073,0.6625266,100530.0,100520.0,0.02]
[1763077125283,0.71234475,100530.0,100520.0,0.02]
[1763077125920,1.08909703,100530.0,100520.0,0.02]
[1763077126115,1.08909703,100530.0,100520.0,0.021]
[1763077126525,1.08909703,100530.0,100520.0,0.022]
[1763077126924,1.08943321,100530.0,100520.0,0.022]
[1763077128324,0.71251284,100530.0,100520.0,0.022]
[1763077130110,1.08943321,100530.0,100520.0,0.022]
[1763077131213,0.25476247,100530.0,100520.0,0.12445]
[1763077131402,0.71251284,100530.0,100520.0,0.022]
[1763077132222,0.5760941,100530.0,100520.0,0.0747]
[1763077132424,0.19917373,100530.0,100520.0,0.12445]
[1763077132747,0.61951284,100530.0,100520.0,0.12445]
[1763077133285,0.61951284,100530.0,100520.0,0.0747]
[1763077133491,0.64330284,100530.0,100520.0,0.0747]
[1763077133692,0.64330284,100530.0,100520.0,0.12445]
[1763077134379,0.24259247,100530.0,100520.0,0.12445]
[1763077134587,0.64330284,100530.0,100520.0,0.0747]
[1763077134762,0.64330284,100530.0,100520.0,0.12445]
[1763077135323,0.26638247,100530.0,100520.0,0.0747]
[1763077135905,0.72413284,100530.0,100520.0,0.022]
[1763077136826,0.72413284,100530.0,100520.0,0.04378]
[1763077138217,0.61951284,100530.0,100520.0,0.12445]
[1763077138398,0.64330284,100530.0,100520.0,0.0747]
[1763077138598,0.72413284,100530.0,100520.0,0.04378]
[1763077138801,0.67454284,100530.0,100520.0,0.04378]
[1763077139109,0.72413284,100530.0,100520.0,0.04378]
[1763077141906,0.72413284,100530.0,100520.0,0.022]
[1763077146766,0.61951284,100530.0,100520.0,0.11294]
[1763077147245,0.24259247,100530.0,100520.0,0.11294]
[1763077147683,0.61951284,100530.0,100520.0,0.11294]
[1763077152251,0.5760941,100530.0,100520.0,0.11294]
[1763077153803,0.5993141,100530.0,100520.0,0.06835]
[1763077154298,0.5993141,100530.0,100520.0,0.11322]
[1763077154862,0.5760941,100530.0,100520.0,0.11322]
[1763077155276,0.19917373,100530.0,100520.0,0.11322]
[1763077155725,0.5760941,100530.0,100520.0,0.11322]
[1763077156769,0.19917373,100530.0,100520.0,0.11322]
[1763077157830,0.5760941,100530.0,100520.0,0.11322]
[1763077158262,0.19917373,100530.0,100520.0,0.11322]
[1763077159394,0.19917373,100530.0,100520.0,0.13322]
[1763077160825,0.00022815,100530.0,100520.0,0.70910575]
[1763077160986,0.00022815,100530.0,100520.0,0.50944431]
[1763077161879,0.00022815,100530.0,100520.0,0.50914037]
[1763077162442,4.992e-05,100530.0,100520.0,0.33218538]
[1763077162645,4.992e-05,100530.0,100520.0,0.33318538]
[1763077163027,4.992e-05,100530.0,100520.0,0.71010575]
[1763077163803,4.992e-05,100530.0,100520.0,1.03310575]
[1763077164002,4.992e-05,100530.0,100520.0,1.41002612]
[1763077164446,4.992e-05,100530.0,100520.0,1.03310575]
[1763077164807,4.992e-05,100530.0,100520.0,1.41002612]
[1763077165508,4.992e-05,100530.0,100520.0,1.43989471]
[1763077165954,4.992e-05,100530.0,100520.0,1.43689471]
[1763077166167,0.00104992,100530.0,100520.0,1.43689471]
[1763077167090,0.00104992,100530.0,100520.0,1.46684605]
[1763077167674,4.992e-05,100530.0,100520.0,1.46684605]
[1763077167874,4.992e-05,100530.0,100520.0,1.54101784]
[1763077169277,4.992e-05,100530.0,100520.0,1.94101784]
[1763077169517,4.992e-05,100530.0,100520.0,1.9674567]
[1763077170170,4.992e-05,100530.0,100520.0,1.5674567]
[1763077170325,4.992e-05,100530.0,100520.0,1.54101784]
[1763077170529,4.992e-05,100530.0,100520.0,1.94101784]
[1763077170745,4.992e-05,100530.0,100520.0,0.88408859]
[1763077170929,4.992e-05,100530.0,100520.0,1.83689471]
[1763077171652,4.992e-05,100530.0,100520.0,1.43689471]
[1763077172252,9.92e-06,100530.0,100520.0,1.43689471]
[1763077173395,9.92e-06,100530.0,100520.0,0.86100896]
[1763077173829,0.57587587,100530.0,100520.0,0.11122]
[1763077174249,0.57587587,100530.0,100520.0,0.43422]
[1763077174869,0.2513755,100530.0,100520.0,0.06635]
[1763077175093,0.67351587,100530.0,100520.0,0.02]
[1763077175478,0.62829587,100530.0,100520.0,0.0316]
[1763077176664,0.62829587,100530.0,100520.0,0.05969]
[1763077176888,0.59818587,100530.0,100520.0,0.10538]
[1763077177313,0.1989555,100530.0,100520.0,0.08538]
[1763077177510,0.57587587,100530.0,100520.0,0.12538]
[1763077178282,9.92e-06,100530.0,100520.0,0.12538]
[1763077179270,0.1989555,100530.0,100520.0,0.12538]
[1763077181453,9.92e-06,100530.0,100520.0,0.64734538]
[1763077181666,9.92e-06,100530.0,100520.0,1.02426575]
[1763077182943,0.1989555,100530.0,100520.0,0.44838]
[1763077183138,0.1989555,100530.0,100520.0,0.82530037]
[1763077183755,0.1989555,100530.0,100520.0,0.44838]
[1763077183939,0.18277075,100530.0,100520.0,0.44838]
[1763077185482,0.57584725,100540.0,100520.0,0.42838]
[1763077185675,0.57584725,100540.0,100530.0,0.11599]
[1763077186495,0.57684725,100540.0,100530.0,0.11599]
[1763077186722,0.19992688,100540.0,100530.0,0.11599]
[1763077187122,0.19892688,100540.0,100530.0,0.11799]
[1763077187328,0.19892688,100540.0,100530.0,0.11999]
[1763077189532,0.57558353,100540.0,100530.0,0.11999]
[1763077190291,0.19892688,100540.0,100530.0,0.11999]
[1763077190743,0.19892688,100540.0,100530.0,0.13999]
[1763077190971,0.20885256,100550.0,100540.0,0.02]
[1763077191141,0.58550921,100550.0,100540.0,0.11533]
[1763077191324,0.19890726,100550.0,100540.0,0.11533]
[1763077191711,0.19921141,100550.0,100540.0,0.11533]
[1763077192357,0.19921141,100550.0,100540.0,0.11633]
[1763077193153,0.19921141,100550.0,100540.0,0.11733]